[Event "*** Titled Tuesday Blitz"]
[Site "Chess.com"]
[Date "2020.04.14"]
[Round "3"]
[White "VALPARAISO37"]
[Black "annamaja"]
[Result "1-0"]
[WhiteElo "2361"]
[BlackElo "2174"]
[TimeControl "180+1"]
[EndTime "10:28:15 PDT"]
[Termination "VALPARAISO37 won by checkmate"]

1. d4 {[%clk 0:03:00.9]} 1... Nf6 {[%clk 0:02:46.4]} 2. c4 {[%clk 0:03:00.8]}
2... e6 {[%clk 0:02:46.8]} 3. Nc3 {[%clk 0:03:01.3]} 3... Bb4 {[%clk 0:02:46.9]}
4. a3 {[%clk 0:03:01.9]} 4... Bxc3+ {[%clk 0:02:46.8]} 5. bxc3 {[%clk
0:03:02.7]} 5... O-O {[%clk 0:02:47.6]} 6. e3 {[%clk 0:03:03.1]} 6... d5 {[%clk
0:02:47.8]} 7. Bd3 {[%clk 0:03:03.1]} 7... dxc4 {[%clk 0:02:35.8]} 8. Bxc4
{[%clk 0:03:02.7]} 8... c5 {[%clk 0:02:36.3]} 9. Ne2 {[%clk 0:03:02.7]} 9... Nc6
{[%clk 0:02:36.1]} 10. O-O {[%clk 0:03:02.1]} 10... b6 {[%clk 0:02:31.4]} 11. f3
{[%clk 0:03:01.6]} 11... Bb7 {[%clk 0:02:31.7]} 12. e4 {[%clk 0:03:00.6]} 12...
cxd4 {[%clk 0:02:12]} 13. cxd4 {[%clk 0:02:58.3]} 13... Rc8 {[%clk 0:02:12]} 14.
Bb5 {[%clk 0:02:58.1]} 14... Na5 {[%clk 0:01:45.3]} 15. Bg5 {[%clk 0:02:55.7]}
15... h6 {[%clk 0:01:44.9]} 16. Bh4 {[%clk 0:02:54.4]} 16... a6 {[%clk
0:01:29.6]} 17. Bd3 {[%clk 0:02:51.8]} 17... g5 {[%clk 0:01:09.5]} 18. Bf2
{[%clk 0:02:50.3]} 18... b5 {[%clk 0:00:52.2]} 19. Ng3 {[%clk 0:02:49.4]} 19...
Nc4 {[%clk 0:00:51.7]} 20. Ra2 {[%clk 0:02:39.9]} 20... Qe7 {[%clk 0:00:49.1]}
21. e5 {[%clk 0:02:37.2]} 21... Nd5 {[%clk 0:00:40.2]} 22. Nh5 {[%clk
0:02:19.4]} 22... Nce3 {[%clk 0:00:28.5]} 23. Bxe3 {[%clk 0:02:18.5]} 23... Nxe3
{[%clk 0:00:29.4]} 24. Qe2 {[%clk 0:02:16.5]} 24... Nxf1 {[%clk 0:00:28.5]} 25.
Nf6+ {[%clk 0:02:16.8]} 25... Kg7 {[%clk 0:00:27.4]} 26. Qxf1 {[%clk 0:02:14.8]}
26... Rc3 {[%clk 0:00:21.9]} 27. f4 {[%clk 0:02:12]} 27... Rfc8 {[%clk
0:00:18.2]} 28. Ra1 {[%clk 0:02:06.2]} 28... Rxa3 {[%clk 0:00:16.3]} 29. Rd1
{[%clk 0:02:05]} 29... Qd8 {[%clk 0:00:12.2]} 30. d5 {[%clk 0:01:56.6]} 30...
Qb6+ {[%clk 0:00:10.6]} 31. Kh1 {[%clk 0:01:56]} 31... Bxd5 {[%clk 0:00:10.5]}
32. fxg5 {[%clk 0:01:55.7]} 32... hxg5 {[%clk 0:00:09.5]} 33. Nh5+ {[%clk
0:01:55.8]} 33... Kf8 {[%clk 0:00:09.8]} 34. Bg6 {[%clk 0:01:40.8]} 34... Rc7
{[%clk 0:00:08.1]} 35. Qf6 {[%clk 0:01:37.5]} 35... Ke8 {[%clk 0:00:07.2]} 36.
Ng7+ {[%clk 0:01:35.1]} 36... Kd7 {[%clk 0:00:07.6]} 37. Bxf7 {[%clk 0:01:15.5]}
37... Kc8 {[%clk 0:00:07]} 38. Bxe6+ {[%clk 0:01:05.7]} 38... Bxe6 {[%clk
0:00:07]} 39. Nxe6 {[%clk 0:01:04.4]} 39... Rc6 {[%clk 0:00:03.5]} 40. Rd8+
{[%clk 0:01:02.2]} 40... Qxd8 {[%clk 0:00:01.8]} 41. Qxd8+ {[%clk 0:01:02]}
41... Kb7 {[%clk 0:00:02.3]} 42. Qd7+ {[%clk 0:01:02]} 42... Kb6 {[%clk
0:00:02.7]} 43. Qd4+ {[%clk 0:00:59.9]} 43... Kb7 {[%clk 0:00:03]} 44. Nd8+
{[%clk 0:00:59]} 44... Kc7 {[%clk 0:00:02.9]} 45. h3 {[%clk 0:00:51.2]} 45...
Ra1+ {[%clk 0:00:02.6]} 46. Kh2 {[%clk 0:00:51.1]} 46... Rcc1 {[%clk 0:00:03.2]}
47. Qd6+ {[%clk 0:00:50.3]} 47... Kc8 {[%clk 0:00:02.8]} 48. Ne6 {[%clk
0:00:49.7]} 48... Rh1+ {[%clk 0:00:02.8]} 49. Kg3 {[%clk 0:00:50.2]} 49... Rag1
{[%clk 0:00:03.4]} 50. Qc7# {[%clk 0:00:49.6]} 1-0

[Event "*** Titled Tuesday Blitz"]
[Site "Chess.com"]
[Date "2020.04.14"]
[Round "3"]
[White "kekic76"]
[Black "bmt011"]
[Result "1-0"]
[WhiteElo "2287"]
[BlackElo "1978"]
[TimeControl "180+1"]
[EndTime "10:28:15 PDT"]
[Termination "kekic76 won on time"]

1. e4 {[%clk 0:03:00.9]} 1... e6 {[%clk 0:02:59.1]} 2. d4 {[%clk 0:03:00.2]}
2... d5 {[%clk 0:02:59.5]} 3. Nd2 {[%clk 0:03:00.1]} 3... Nf6 {[%clk 0:02:58.6]}
4. e5 {[%clk 0:02:58.6]} 4... Nfd7 {[%clk 0:02:59.1]} 5. Bd3 {[%clk 0:02:59]}
5... c5 {[%clk 0:02:59.2]} 6. c3 {[%clk 0:02:59.4]} 6... Nc6 {[%clk 0:02:59.6]}
7. Ne2 {[%clk 0:02:59.3]} 7... Be7 {[%clk 0:02:55.9]} 8. O-O {[%clk 0:02:58.3]}
8... f6 {[%clk 0:02:51]} 9. f4 {[%clk 0:02:58.1]} 9... cxd4 {[%clk 0:02:49.9]}
10. cxd4 {[%clk 0:02:57.9]} 10... O-O {[%clk 0:02:44.7]} 11. Nf3 {[%clk
0:02:56.2]} 11... Qb6 {[%clk 0:02:39.3]} 12. Kh1 {[%clk 0:02:55.7]} 12... f5
{[%clk 0:02:19]} 13. a3 {[%clk 0:02:54.6]} 13... a5 {[%clk 0:02:16.6]} 14. b3
{[%clk 0:02:52.8]} 14... Qa7 {[%clk 0:01:45.8]} 15. Be3 {[%clk 0:02:38]} 15...
Rb8 {[%clk 0:01:43.2]} 16. Bf2 {[%clk 0:02:36.8]} 16... b5 {[%clk 0:01:40.8]}
17. Qd2 {[%clk 0:02:34]} 17... b4 {[%clk 0:01:37.3]} 18. a4 {[%clk 0:02:32.1]}
18... Ba6 {[%clk 0:01:37.5]} 19. Rfc1 {[%clk 0:02:30.8]} 19... Rfc8 {[%clk
0:01:30.6]} 20. Ne1 {[%clk 0:02:21.7]} 20... Bxd3 {[%clk 0:01:07.9]} 21. Nxd3
{[%clk 0:02:20.8]} 21... Qb6 {[%clk 0:01:07.4]} 22. Rc2 {[%clk 0:02:20]} 22...
Na7 {[%clk 0:01:03]} 23. Rac1 {[%clk 0:02:19.7]} 23... Rxc2 {[%clk 0:01:01]} 24.
Rxc2 {[%clk 0:02:19.7]} 24... Rc8 {[%clk 0:01:01.1]} 25. h3 {[%clk 0:02:19.8]}
25... Rc6 {[%clk 0:00:52.7]} 26. Qc1 {[%clk 0:02:15.4]} 26... Qc7 {[%clk
0:00:50.5]} 27. Rxc6 {[%clk 0:02:14.3]} 27... Qxc6 {[%clk 0:00:50.9]} 28. Qxc6
{[%clk 0:02:11.8]} 28... Nxc6 {[%clk 0:00:51.3]} 29. g4 {[%clk 0:02:11.5]} 29...
g6 {[%clk 0:00:38.1]} 30. Kg2 {[%clk 0:02:11.3]} 30... Kf7 {[%clk 0:00:32.3]}
31. Ne1 {[%clk 0:02:08.8]} 31... Nb6 {[%clk 0:00:28.4]} 32. Kf3 {[%clk
0:02:02.9]} 32... Nc4 {[%clk 0:00:19.8]} 33. bxc4 {[%clk 0:01:59.9]} 33... dxc4
{[%clk 0:00:20.7]} 34. Ke3 {[%clk 0:01:07.5]} 34... Bd8 {[%clk 0:00:17.4]} 35.
Kd2 {[%clk 0:01:06.2]} 35... Bb6 {[%clk 0:00:17.4]} 36. Kc2 {[%clk 0:01:06.1]}
36... Ke7 {[%clk 0:00:15.2]} 37. Nf3 {[%clk 0:01:06]} 37... b3+ {[%clk
0:00:13.6]} 38. Kc3 {[%clk 0:01:03.8]} 38... Nb4 {[%clk 0:00:13.9]} 39. Kxc4
{[%clk 0:00:59.9]} 39... b2 {[%clk 0:00:13.8]} 40. Nc3 {[%clk 0:00:59.8]} 40...
Nd5 {[%clk 0:00:08.7]} 41. Nb1 {[%clk 0:00:59.1]} 41... Nxf4 {[%clk 0:00:08.9]}
42. gxf5 {[%clk 0:00:58.5]} 42... gxf5 {[%clk 0:00:05.5]} 43. h4 {[%clk
0:00:55.2]} 43... Ng6 {[%clk 0:00:01.8]} 44. Be1 {[%clk 0:00:52.7]} 1-0

[Event "*** Titled Tuesday Blitz"]
[Site "Chess.com"]
[Date "2020.04.14"]
[Round "3"]
[White "Gandrade2"]
[Black "MacDaddyMac"]
[Result "0-1"]
[WhiteElo "1985"]
[BlackElo "2288"]
[TimeControl "180+1"]
[EndTime "10:28:17 PDT"]
[Termination "MacDaddyMac won on time"]

1. d4 {[%clk 0:03:00.9]} 1... Nf6 {[%clk 0:02:57.6]} 2. c4 {[%clk 0:03:01.2]}
2... e6 {[%clk 0:02:57.5]} 3. Nc3 {[%clk 0:03:01]} 3... Bb4 {[%clk 0:02:57.6]}
4. f3 {[%clk 0:03:00.7]} 4... c5 {[%clk 0:02:55.9]} 5. d5 {[%clk 0:02:58.2]}
5... d6 {[%clk 0:02:45.9]} 6. a3 {[%clk 0:02:14.8]} 6... Bxc3+ {[%clk
0:02:44.4]} 7. bxc3 {[%clk 0:02:15.7]} 7... e5 {[%clk 0:02:24.9]} 8. e4 {[%clk
0:02:12.4]} 8... Qa5 {[%clk 0:02:24.5]} 9. Qc2 {[%clk 0:01:53.1]} 9... Bd7
{[%clk 0:02:17.2]} 10. a4 {[%clk 0:01:45.4]} 10... a6 {[%clk 0:01:56.5]} 11. Bb2
{[%clk 0:01:39.2]} 11... Bc8 {[%clk 0:01:50]} 12. Bd3 {[%clk 0:01:27.1]} 12...
Nbd7 {[%clk 0:01:49.5]} 13. Ne2 {[%clk 0:01:26.2]} 13... Nb6 {[%clk 0:01:49.6]}
14. Nc1 {[%clk 0:01:13.4]} 14... Nbd7 {[%clk 0:01:49]} 15. O-O {[%clk 0:01:06]}
15... g5 {[%clk 0:01:47.7]} 16. Nb3 {[%clk 0:01:01.5]} 16... Qc7 {[%clk
0:01:47.3]} 17. Bc1 {[%clk 0:00:58.3]} 17... h6 {[%clk 0:01:36.1]} 18. a5 {[%clk
0:00:43.4]} 18... Nf8 {[%clk 0:01:28.6]} 19. Nd2 {[%clk 0:00:40.3]} 19... Bd7
{[%clk 0:01:27.6]} 20. Qd1 {[%clk 0:00:36.9]} 20... Ng6 {[%clk 0:01:27.1]} 21.
Bc2 {[%clk 0:00:34.9]} 21... O-O-O {[%clk 0:01:17]} 22. Ba4 {[%clk 0:00:28.3]}
22... Bxa4 {[%clk 0:01:15.3]} 23. Qxa4 {[%clk 0:00:29.2]} 23... Qd7 {[%clk
0:01:14.3]} 24. Qb3 {[%clk 0:00:23.6]} 24... Nf4 {[%clk 0:01:08.5]} 25. Qb6
{[%clk 0:00:19.5]} 25... Qc7 {[%clk 0:01:06.7]} 26. Rb1 {[%clk 0:00:14.7]} 26...
Qxb6 {[%clk 0:01:06.2]} 27. Rxb6 {[%clk 0:00:15.6]} 27... Kc7 {[%clk 0:00:46]}
28. Nb3 {[%clk 0:00:04.1]} 28... Nd7 {[%clk 0:00:41.1]} 29. Bxf4 {[%clk
0:00:02.3]} 29... gxf4 {[%clk 0:00:42]} 30. Rb1 {[%clk 0:00:01.4]} 30... Nxb6
{[%clk 0:00:41.5]} 31. axb6+ {[%clk 0:00:02.3]} 31... Kxb6 {[%clk 0:00:40.2]}
32. Nd4+ {[%clk 0:00:01.2]} 32... Ka7 {[%clk 0:00:39.1]} 33. Nf5 {[%clk
0:00:02.1]} 33... h5 {[%clk 0:00:35.6]} 34. Kf2 {[%clk 0:00:02]} 34... h4 {[%clk
0:00:34.6]} 35. h3 {[%clk 0:00:02.4]} 35... Kb8 {[%clk 0:00:31]} 36. Rb2 {[%clk
0:00:01.7]} 36... Kc7 {[%clk 0:00:31.2]} 37. Kf1 {[%clk 0:00:01.9]} 37... Rdg8
{[%clk 0:00:28.7]} 38. Ne7 {[%clk 0:00:01]} 38... Rg5 {[%clk 0:00:24.9]} 0-1

[Event "*** Titled Tuesday Blitz"]
[Site "Chess.com"]
[Date "2020.04.14"]
[Round "3"]
[White "Incognito_Knight"]
[Black "TST2014"]
[Result "1-0"]
[WhiteElo "2761"]
[BlackElo "2538"]
[TimeControl "180+1"]
[EndTime "10:28:19 PDT"]
[Termination "Incognito_Knight won by resignation"]

1. d4 {[%clk 0:03:00.9]} 1... Nf6 {[%clk 0:02:59.5]} 2. c4 {[%clk 0:03:00.5]}
2... e6 {[%clk 0:02:59.1]} 3. g3 {[%clk 0:03:00.1]} 3... d5 {[%clk 0:02:54.6]}
4. Nf3 {[%clk 0:02:59.8]} 4... Bb4+ {[%clk 0:02:54.3]} 5. Bd2 {[%clk 0:02:59.2]}
5... Be7 {[%clk 0:02:54.6]} 6. Bg2 {[%clk 0:02:59]} 6... O-O {[%clk 0:02:54.4]}
7. O-O {[%clk 0:02:59.9]} 7... dxc4 {[%clk 0:02:49.2]} 8. Qc2 {[%clk 0:02:59.5]}
8... a6 {[%clk 0:02:48.3]} 9. Qxc4 {[%clk 0:02:57.9]} 9... b5 {[%clk 0:02:48]}
10. Qc2 {[%clk 0:02:57.6]} 10... Bb7 {[%clk 0:02:48.4]} 11. Ba5 {[%clk
0:02:55.7]} 11... Nc6 {[%clk 0:02:42]} 12. Bd2 {[%clk 0:02:28.4]} 12... Nxd4
{[%clk 0:02:36.2]} 13. Nxd4 {[%clk 0:02:26.1]} 13... Bxg2 {[%clk 0:02:36.8]} 14.
Nxe6 {[%clk 0:02:24.3]} 14... fxe6 {[%clk 0:02:16.9]} 15. Kxg2 {[%clk
0:02:22.6]} 15... c5 {[%clk 0:02:17]} 16. Nc3 {[%clk 0:02:17.8]} 16... Qb6
{[%clk 0:02:11]} 17. a4 {[%clk 0:02:13.3]} 17... Qc6+ {[%clk 0:02:04.7]} 18. f3
{[%clk 0:02:12.2]} 18... Rad8 {[%clk 0:02:03.6]} 19. axb5 {[%clk 0:01:59]} 19...
axb5 {[%clk 0:02:03.2]} 20. Rfd1 {[%clk 0:01:56.3]} 20... c4 {[%clk 0:01:59.7]}
21. Ra5 {[%clk 0:01:22.7]} 21... Bb4 {[%clk 0:01:54.6]} 22. Ra2 {[%clk
0:01:20.8]} 22... Rd7 {[%clk 0:01:41]} 23. Rda1 {[%clk 0:01:17.9]} 23... Rfd8
{[%clk 0:01:39.3]} 24. Bg5 {[%clk 0:00:53.3]} 24... Ng4 {[%clk 0:00:36.8]} 25.
Qe4 {[%clk 0:00:32.7]} 25... Qxe4 {[%clk 0:00:29.4]} 26. Nxe4 {[%clk 0:00:33.6]}
26... Nf6 {[%clk 0:00:14.1]} 27. Bxf6 {[%clk 0:00:32.7]} 27... gxf6 {[%clk
0:00:12.6]} 28. Nxf6+ {[%clk 0:00:33.3]} 28... Kf7 {[%clk 0:00:12.9]} 29. Nxd7
{[%clk 0:00:33.9]} 29... Rxd7 {[%clk 0:00:13.8]} 30. Ra7 {[%clk 0:00:32.8]}
30... Ke7 {[%clk 0:00:13.9]} 31. Rxd7+ {[%clk 0:00:30.5]} 31... Kxd7 {[%clk
0:00:14.8]} 32. h4 {[%clk 0:00:18.3]} 32... Kc6 {[%clk 0:00:13.1]} 33. g4 {[%clk
0:00:17.6]} 33... h6 {[%clk 0:00:13.3]} 34. g5 {[%clk 0:00:16.4]} 34... hxg5
{[%clk 0:00:12.6]} 35. hxg5 {[%clk 0:00:17.3]} 35... Be7 {[%clk 0:00:13.3]} 36.
f4 {[%clk 0:00:16.7]} 36... Bf6 {[%clk 0:00:14.2]} 37. gxf6 {[%clk 0:00:16.4]}
37... b4 {[%clk 0:00:12.4]} 38. f7 {[%clk 0:00:16.2]} 1-0

[Event "*** Titled Tuesday Blitz"]
[Site "Chess.com"]
[Date "2020.04.14"]
[Round "3"]
[White "TheoSlade"]
[Black "Spriteball"]
[Result "1-0"]
[WhiteElo "2269"]
[BlackElo "1899"]
[TimeControl "180+1"]
[EndTime "10:28:19 PDT"]
[Termination "TheoSlade won on time"]

1. d4 {[%clk 0:03:00.9]} 1... Nf6 {[%clk 0:02:59.7]} 2. c4 {[%clk 0:03:01]} 2...
e6 {[%clk 0:03:00.1]} 3. g3 {[%clk 0:03:00.9]} 3... d5 {[%clk 0:02:56.9]} 4. Bg2
{[%clk 0:03:01]} 4... Be7 {[%clk 0:02:55.1]} 5. Nf3 {[%clk 0:03:01.3]} 5... O-O
{[%clk 0:02:54.3]} 6. O-O {[%clk 0:03:01.4]} 6... dxc4 {[%clk 0:02:52.5]} 7. Qc2
{[%clk 0:03:01.7]} 7... a6 {[%clk 0:02:52.8]} 8. a4 {[%clk 0:03:00.9]} 8... Bd7
{[%clk 0:02:52]} 9. Qxc4 {[%clk 0:03:01]} 9... Bc6 {[%clk 0:02:48.6]} 10. Bf4
{[%clk 0:03:01]} 10... Bd6 {[%clk 0:02:38.9]} 11. Nc3 {[%clk 0:03:00.7]} 11...
a5 {[%clk 0:02:32.8]} 12. Rac1 {[%clk 0:02:52.9]} 12... Na6 {[%clk 0:02:31.3]}
13. Rfd1 {[%clk 0:02:46.5]} 13... Nb4 {[%clk 0:02:28.7]} 14. Ne5 {[%clk
0:02:32]} 14... Bxg2 {[%clk 0:02:19.9]} 15. Kxg2 {[%clk 0:02:32.9]} 15... Nbd5
{[%clk 0:02:15.9]} 16. Bd2 {[%clk 0:02:20.1]} 16... c6 {[%clk 0:02:07.8]} 17. e4
{[%clk 0:02:15.6]} 17... Nxc3 {[%clk 0:02:06.1]} 18. bxc3 {[%clk 0:01:44.5]}
18... Nxe4 {[%clk 0:02:06.3]} 19. Bf4 {[%clk 0:01:36.8]} 19... Nf6 {[%clk
0:01:57.8]} 20. Rb1 {[%clk 0:01:34.3]} 20... Qc7 {[%clk 0:01:48.1]} 21. Qb3
{[%clk 0:01:30.8]} 21... Rab8 {[%clk 0:01:41]} 22. c4 {[%clk 0:01:26.7]} 22...
c5 {[%clk 0:01:31.4]} 23. Qb6 {[%clk 0:01:21.1]} 23... Qxb6 {[%clk 0:01:19.5]}
24. Rxb6 {[%clk 0:01:22]} 24... Bc7 {[%clk 0:01:20]} 25. Rb5 {[%clk 0:01:20.5]}
25... cxd4 {[%clk 0:01:16.9]} 26. Rxd4 {[%clk 0:01:18]} 26... b6 {[%clk
0:00:59]} 27. Nd7 {[%clk 0:01:14.7]} 27... Bxf4 {[%clk 0:00:40.3]} 28. Nxf6+
{[%clk 0:01:03.2]} 28... gxf6 {[%clk 0:00:38.5]} 29. Rxf4 {[%clk 0:01:04.1]}
29... f5 {[%clk 0:00:31.6]} 30. g4 {[%clk 0:01:00.5]} 30... fxg4 {[%clk
0:00:24.5]} 31. Rxg4+ {[%clk 0:01:01.4]} 31... Kh8 {[%clk 0:00:24.3]} 32. c5
{[%clk 0:01:01.6]} 32... bxc5 {[%clk 0:00:23.1]} 33. Rxc5 {[%clk 0:00:59.7]}
33... Rg8 {[%clk 0:00:20.3]} 34. Rxg8+ {[%clk 0:00:53.3]} 34... Rxg8+ {[%clk
0:00:21.2]} 35. Kf3 {[%clk 0:00:53.6]} 35... Ra8 {[%clk 0:00:20.2]} 36. Ke4
{[%clk 0:00:52.5]} 36... Kg7 {[%clk 0:00:20.2]} 37. Ke5 {[%clk 0:00:50.8]} 37...
Kg6 {[%clk 0:00:19.1]} 38. Kd6 {[%clk 0:00:48]} 38... Rd8+ {[%clk 0:00:14.6]}
39. Kc6 {[%clk 0:00:44.5]} 39... Rc8+ {[%clk 0:00:12.6]} 40. Kb6 {[%clk
0:00:43.5]} 40... Rxc5 {[%clk 0:00:09]} 41. Kxc5 {[%clk 0:00:44.4]} 41... e5
{[%clk 0:00:09.5]} 42. Kb5 {[%clk 0:00:41.2]} 42... e4 {[%clk 0:00:09.6]} 43.
Kxa5 {[%clk 0:00:41.1]} 43... f5 {[%clk 0:00:07.1]} 44. Kb4 {[%clk 0:00:31.8]}
44... f4 {[%clk 0:00:07.4]} 45. Kc3 {[%clk 0:00:32.1]} 45... Kf5 {[%clk
0:00:01.5]} 46. a5 {[%clk 0:00:31.1]} 1-0

[Event "*** Titled Tuesday Blitz"]
[Site "Chess.com"]
[Date "2020.04.14"]
[Round "3"]
[White "jefferyx"]
[Black "nfds"]
[Result "1-0"]
[WhiteElo "2877"]
[BlackElo "2579"]
[TimeControl "180+1"]
[EndTime "10:28:20 PDT"]
[Termination "jefferyx won by resignation"]

1. c4 {[%clk 0:03:00.9]} 1... Nf6 {[%clk 0:02:58.7]} 2. Nf3 {[%clk 0:03:00.6]}
2... e6 {[%clk 0:02:56.7]} 3. d4 {[%clk 0:02:59.2]} 3... Bb4+ {[%clk 0:02:55.5]}
4. Bd2 {[%clk 0:02:58.9]} 4... Qe7 {[%clk 0:02:53.5]} 5. g3 {[%clk 0:02:56.6]}
5... O-O {[%clk 0:02:52.7]} 6. Bg2 {[%clk 0:02:55]} 6... Bxd2+ {[%clk
0:02:51.8]} 7. Qxd2 {[%clk 0:02:55.9]} 7... Nc6 {[%clk 0:02:50.5]} 8. e3 {[%clk
0:02:52.3]} 8... e5 {[%clk 0:02:45.6]} 9. Nc3 {[%clk 0:02:45.4]} 9... exd4
{[%clk 0:02:37.3]} 10. Nxd4 {[%clk 0:02:46.3]} 10... Ne5 {[%clk 0:02:36.5]} 11.
b3 {[%clk 0:02:43.6]} 11... d6 {[%clk 0:02:30.4]} 12. O-O {[%clk 0:02:43.9]}
12... Rb8 {[%clk 0:02:25.4]} 13. Rae1 {[%clk 0:02:41.3]} 13... Bd7 {[%clk
0:02:19.7]} 14. f4 {[%clk 0:02:41.1]} 14... Nc6 {[%clk 0:02:17.6]} 15. e4 {[%clk
0:02:37.6]} 15... Nxd4 {[%clk 0:02:10.8]} 16. Qxd4 {[%clk 0:02:38.5]} 16... Bc6
{[%clk 0:01:47.3]} 17. Qxa7 {[%clk 0:02:30]} 17... Rfe8 {[%clk 0:01:26.4]} 18.
Qd4 {[%clk 0:02:28.2]} 18... Nd7 {[%clk 0:01:20.9]} 19. b4 {[%clk 0:02:23.5]}
19... b6 {[%clk 0:01:08.8]} 20. Nd5 {[%clk 0:02:23.1]} 20... Bxd5 {[%clk
0:00:58.7]} 21. cxd5 {[%clk 0:02:24]} 21... b5 {[%clk 0:00:35.3]} 22. Qc3 {[%clk
0:02:07.4]} 22... Nb6 {[%clk 0:00:23.9]} 23. e5 {[%clk 0:02:07.5]} 23... Nc4
{[%clk 0:00:23.8]} 24. e6 {[%clk 0:01:53.7]} 24... Ra8 {[%clk 0:00:22.9]} 25.
Bh3 {[%clk 0:01:24.5]} 25... Kh8 {[%clk 0:00:21]} 26. exf7 {[%clk 0:01:16.7]}
26... Qxf7 {[%clk 0:00:20.1]} 27. Rxe8+ {[%clk 0:01:17.6]} 27... Qxe8 {[%clk
0:00:19]} 28. Re1 {[%clk 0:01:18.2]} 28... Qf7 {[%clk 0:00:14.6]} 29. Be6 {[%clk
0:01:07.9]} 29... Qh5 {[%clk 0:00:13.5]} 30. a4 {[%clk 0:01:01]} 30... Rxa4
{[%clk 0:00:10.5]} 31. Bd7 {[%clk 0:01:01.2]} 31... Ra8 {[%clk 0:00:08]} 32.
Bxb5 {[%clk 0:01:01.1]} 32... Nb6 {[%clk 0:00:06.9]} 33. Qxc7 {[%clk 0:00:58.2]}
33... Nxd5 {[%clk 0:00:06]} 34. Qb7 {[%clk 0:00:53.7]} 34... Rf8 {[%clk
0:00:04.7]} 35. Bc4 {[%clk 0:00:46.6]} 35... Nxf4 {[%clk 0:00:04.2]} 36. gxf4
{[%clk 0:00:47.1]} 36... Qg4+ {[%clk 0:00:03.5]} 37. Qg2 {[%clk 0:00:46.5]}
37... Qxf4 {[%clk 0:00:03.5]} 38. Rf1 {[%clk 0:00:38.5]} 38... Qd4+ {[%clk
0:00:03]} 39. Kh1 {[%clk 0:00:39.1]} 39... Rc8 {[%clk 0:00:02.2]} 40. Be6 {[%clk
0:00:38.4]} 40... Rd8 {[%clk 0:00:02]} 41. b5 {[%clk 0:00:38.4]} 41... Qb6
{[%clk 0:00:01.8]} 42. Qf2 {[%clk 0:00:33.3]} 42... Qxf2 {[%clk 0:00:01.4]} 43.
Rxf2 {[%clk 0:00:34.2]} 43... Rb8 {[%clk 0:00:02.1]} 44. Bd7 {[%clk 0:00:31.8]}
44... g6 {[%clk 0:00:03]} 45. Rd2 {[%clk 0:00:31.5]} 45... Kg7 {[%clk
0:00:03.9]} 46. Rxd6 {[%clk 0:00:31.9]} 46... Kf7 {[%clk 0:00:04.1]} 47. Bc6
{[%clk 0:00:32.3]} 47... Ke7 {[%clk 0:00:04]} 48. Rd7+ {[%clk 0:00:32.3]} 1-0

[Event "*** Titled Tuesday Blitz"]
[Site "Chess.com"]
[Date "2020.04.14"]
[Round "3"]
[White "sergeikim"]
[Black "flomarechot"]
[Result "1-0"]
[WhiteElo "2380"]
[BlackElo "2180"]
[TimeControl "180+1"]
[EndTime "10:28:20 PDT"]
[Termination "sergeikim won on time"]

1. d4 {[%clk 0:03:00.9]} 1... d5 {[%clk 0:02:45.8]} 2. c4 {[%clk 0:03:00.6]}
2... e6 {[%clk 0:02:44.4]} 3. Nc3 {[%clk 0:03:00.4]} 3... Nf6 {[%clk 0:02:44]}
4. Nf3 {[%clk 0:03:00.3]} 4... b6 {[%clk 0:02:44.2]} 5. cxd5 {[%clk 0:02:58.8]}
5... Nxd5 {[%clk 0:02:40.5]} 6. Bg5 {[%clk 0:02:56.1]} 6... Be7 {[%clk
0:02:32.6]} 7. Bxe7 {[%clk 0:02:50.8]} 7... Qxe7 {[%clk 0:02:23.6]} 8. Nxd5
{[%clk 0:02:49]} 8... exd5 {[%clk 0:02:22.7]} 9. e3 {[%clk 0:02:48.9]} 9... O-O
{[%clk 0:02:21.8]} 10. Bd3 {[%clk 0:02:47.4]} 10... Bb7 {[%clk 0:02:18.6]} 11.
O-O {[%clk 0:02:46.5]} 11... Nd7 {[%clk 0:02:18.9]} 12. Rc1 {[%clk 0:02:45.5]}
12... Rac8 {[%clk 0:02:17.5]} 13. Bf5 {[%clk 0:02:44.3]} 13... Qd6 {[%clk
0:01:55.8]} 14. Ne5 {[%clk 0:02:14.8]} 14... Rcd8 {[%clk 0:01:51.7]} 15. Nxd7
{[%clk 0:02:10.1]} 15... Rxd7 {[%clk 0:01:51.2]} 16. Bxd7 {[%clk 0:02:09.4]}
16... Qxd7 {[%clk 0:01:51.5]} 17. Qc2 {[%clk 0:01:58.6]} 17... c6 {[%clk
0:01:49.3]} 18. Qa4 {[%clk 0:01:58.2]} 18... Ba8 {[%clk 0:01:45.6]} 19. Qb4
{[%clk 0:01:49.5]} 19... f5 {[%clk 0:01:39.7]} 20. Rfe1 {[%clk 0:01:45.9]} 20...
Rf6 {[%clk 0:01:39.3]} 21. a4 {[%clk 0:01:43.3]} 21... Rg6 {[%clk 0:01:36.1]}
22. a5 {[%clk 0:01:41.5]} 22... b5 {[%clk 0:01:29.9]} 23. Qc5 {[%clk 0:01:33.9]}
23... h5 {[%clk 0:01:24.5]} 24. Qc2 {[%clk 0:01:26.3]} 24... h4 {[%clk
0:01:11.4]} 25. h3 {[%clk 0:01:26.1]} 25... Kh7 {[%clk 0:00:39.2]} 26. Qe2
{[%clk 0:01:24.8]} 26... Kg8 {[%clk 0:00:17.3]} 27. Qf3 {[%clk 0:01:23.8]} 27...
a6 {[%clk 0:00:09.8]} 28. Qf4 {[%clk 0:01:23.2]} 28... Bb7 {[%clk 0:00:08.8]}
29. Qxh4 {[%clk 0:01:21.2]} 29... Bc8 {[%clk 0:00:08.7]} 30. Qf4 {[%clk
0:01:20.3]} 30... Qe6 {[%clk 0:00:08]} 31. f3 {[%clk 0:01:19.2]} 31... Bd7
{[%clk 0:00:06.5]} 32. Kh2 {[%clk 0:01:12.9]} 32... Qf6 {[%clk 0:00:05.4]} 33.
Rcd1 {[%clk 0:01:08.4]} 33... Rg5 {[%clk 0:00:05.2]} 34. e4 {[%clk 0:01:05.9]}
34... Qg6 {[%clk 0:00:05.3]} 35. Rd2 {[%clk 0:01:00.5]} 35... fxe4 {[%clk
0:00:05.1]} 36. fxe4 {[%clk 0:00:59.5]} 36... dxe4 {[%clk 0:00:03.4]} 37. Qxe4
{[%clk 0:00:53.9]} 37... Bf5 {[%clk 0:00:02.7]} 38. Qe8+ {[%clk 0:00:52.6]}
38... Kh7 {[%clk 0:00:03.2]} 39. Qxg6+ {[%clk 0:00:49.7]} 39... Bxg6 {[%clk
0:00:03.6]} 40. Re5 {[%clk 0:00:46.4]} 40... Rxe5 {[%clk 0:00:02.1]} 41. dxe5
{[%clk 0:00:46.2]} 41... Bf7 {[%clk 0:00:01.7]} 42. Rd6 {[%clk 0:00:42.9]} 42...
Bd5 {[%clk 0:00:01.3]} 43. e6 {[%clk 0:00:42.3]} 43... Kg8 {[%clk 0:00:01.4]}
44. Rd8+ {[%clk 0:00:42]} 1-0